Cogmind - Beta 13 @@@ ROGUE MODE // 2024.05.08 @ 01:50:02 Player: JP Result: Self-destructed Performance ------------- Evolutions (3) 1500 Regions Visited (6) 1200 Robots Destroyed (25) 125 Value Destroyed (709) 709 Prototype IDs (27) 540 Alien Tech Used (0) 0 Bonus (300) 300 TOTAL SCORE: 4374 Bonus ------- Aligned with FarCom 300 Cogmind --------- Core Integrity 660/700 Matter 301/400 Energy 315/315 System Corruption 0% Temperature Cool (0) Movement Walking (260) Ox2 Location -7/Factory Parts ------- > --- POWER (2) -------- Improved Ion Engine Micro Nuclear Core > --- PROPULSION (3) --- Aluminum Leg Aluminum Leg > --- UTILITY (5) ------ Medium Storage Unit Medium Matter Pod Hacking Suite Component Analysis Suite Thief Drone Bay (3/3) > --- WEAPON (3) ------- Heavy Particle Gun Ion Cannon Ion Cannon > --- INVENTORY (10) --- Reinforced Ion Engine Experimental Sensor Array Chronowheel Particle Gun Remote Datajack Peak State ------------ > --- POWER ------------ Improved Ion Engine Micro Nuclear Core > --- PROPULSION ------- Aluminum Leg Aluminum Leg > --- UTILITY ---------- Medium Storage Unit Medium Matter Pod Hacking Suite Component Analysis Suite Thief Drone Bay > --- WEAPON ----------- Heavy Particle Gun Ion Cannon Ion Cannon > --- INVENTORY -------- Reinforced Ion Engine Experimental Sensor Array Chronowheel Particle Gun Remote Datajack [Rating: 37] Favorites ----------- Power Light Ion Engine Engine Light Ion Engine Power Core Light Nuclear Core Propulsion Aluminum Leg Leg Aluminum Leg Hover Unit Airjet Flight Unit Flight Unit Utility Medium Storage Unit Device Thief Drone Bay Storage Medium Storage Unit Processor 0b10 Alert Chip Hackware Hacking Suite Protection Light Armor Plating Weapon Light Assault Rifle Energy Gun Improved Medium Laser Energy Cannon Ion Cannon Ballistic Gun Light Assault Rifle Special Weapon Mining Laser Build | -11 -10 -10 -10 -9 -8 -7 ------- Run | Yrd Mat Min Exi Min Mat Fac Slots Evolved 6 | . . . . . 4 2 Power 1 | . . . . . 1 . Propulsion 1 | . . . . . 1 . Utility 3 | . . . . . 2 1 Weapon 1 | . . . . . . 1 Parts Attached 59 | 6 2 . 1 2 40 8 Power 11 | 1 . . . 1 8 1 Engine 8 | 1 . . . 1 6 . Core 3 | . . . . . 2 1 Reactor . | . . . . . . . Propulsion 11 | 2 . . . . 7 2 Treads . | . . . . . . . Leg 4 | 2 . . . . . 2 Wheel . | . . . . . . . Hover 1 | . . . . . 1 . Flight 6 | . . . . . 6 . Utility 14 | 1 1 . 1 . 8 3 Device 5 | . . . . . 4 1 Storage 4 | 1 1 . . . 1 1 Processor 3 | . . . 1 . 2 . Hackware 1 | . . . . . . 1 Protection 1 | . . . . . 1 . Artifact . | . . . . . . . Weapon 23 | 2 1 . . 1 17 2 Energy Gun 5 | 1 . . . . 4 . Energy Cannon 2 | . . . . . . 2 Ballistic Gun 11 | 1 1 . . 1 8 . Ballistic Cannon . | . . . . . . . Launcher . | . . . . . . . Special Weapon 5 | . . . . . 5 . Impact Weapon . | . . . . . . . Slashing Weapon . | . . . . . . . Piercing Weapon . | . . . . . . . Special Melee Weapon . | . . . . . . . Unidentified Prototypes 5 | . . . 1 . 4 . Parts Lost 18 | . . . . . 16 2 Power 3 | . . . . . 3 . Propulsion 6 | . . . . . 6 . Utility 4 | . . . . . 3 1 Weapon 5 | . . . . . 4 1 Highest Loss Streak 4 | . . . . . 4 2 To Critical Strikes . | . . . . . . . Average Slot Usage (%) 85 | . 85 85 96 99 77 85 Engine 11 | . 14 14 14 14 9 7 Core 2 | . . . . . 4 4 Leg 17 | . 28 28 28 28 10 3 Flight 4 | . . . . . 6 17 Device 6 | . . . . . 8 19 Storage 11 | . 14 14 14 14 9 15 Processor 9 | . . . 10 14 10 . Energy Gun 4 | . 9 . . . 7 7 Ballistic Gun 13 | . 18 28 28 27 5 . Special Weapon 2 | . . . . . 4 4 Naked Turns . | . . . . . . . Heaviest Build 45 | 11 16 15 15 21 31 45 Greatest Support 20 | 20 20 20 20 20 20 20 Greatest Overweight (x) 9 | 1 . . . 1 9 3 Average Overweight (x) . | . . . . . 1 1 Largest Inventory Capacity 10 | 8 10 10 10 10 10 10 Average Capacity 9 | 7 9 10 10 10 10 10 Most Carried 10 | 7 4 3 5 8 10 10 Average Carried 6 | 3 2 3 4 6 7 8 Final Capacity 10 | 8 10 10 10 10 10 10 Final Carried 10 | 2 3 3 4 8 10 5 Class Distribution -------------------- 74% | Mutant 20% | Scavenger-Mutant Dominant Class ---------------- Mutant | -10/Materials Mutant | -10/Mines Mutant | -10/Exiles Mutant | -9/Mines Mutant | -8/Materials Scavenger-Mutant | -7/Factory Resources | -11 -10 -10 -10 -9 -8 -7 ----------- Run | Yrd Mat Min Exi Min Mat Fac Matter Collected 819 | 195 57 . . 33 406 128 Remotely . | . . . . . . . Salvage Created 794 | . 57 . . . 609 128 Parts 56 | . 8 . . . 44 4 Haulers Intercepted . | . . . . . . . Recyclers Shooed . | . . . . . . . Parts Field Recycled . | . . . . . . . Retrieved Matter . | . . . . . . . Parts Self-Destructed . | . . . . . . . Prevented . | . . . . . . . Kills | -11 -10 -10 -10 -9 -8 -7 ------- Run | Yrd Mat Min Exi Min Mat Fac Combat Hostiles Destroyed 24 | . 3 . . . 18 3 Guns 23 | . 3 . . . 17 3 Cannons 1 | . . . . . 1 . Classes Destroyed 7 | . 1 . . . 6 . Worker 1 | . . . . . 1 . Swarmer 11 | . 3 . . . 8 . Grunt 5 | . . . . . 2 3 Brawler 1 | . . . . . 1 . Duelist 1 | . . . . . 1 . Sentry 5 | . . . . . 5 . Hunter 1 | . . . . . 1 . Best Kill Streak 3 | . 3 . . . 3 3 Combat Bots Only 3 | . 3 . . . 3 3 Max Kills in Single Turn 2 | . 1 . . . 2 1 Gunslinging 1 | . . . . . 1 . Exploded . | . . . . . . . Melee . | . . . . . . . Uniques/NPCs Destroyed . | . . . . . . . Combat | -11 -10 -10 -10 -9 -8 -7 -------- Run | Yrd Mat Min Exi Min Mat Fac Hostile Shots Fired 197 | . 14 . . . 161 22 Missed 40 | . . . . . 36 4 Damage Taken 2109 | . 102 . . . 1727 280 Core 365 | . 31 . . . 294 40 Absorbed by Shields . | . . . . . . . Core Remaining (%) 77 | 100 . . . 87 46 . Volleys Fired 129 | . 8 . . . 96 25 Largest 2 | . 2 . . . 2 1 Hottest 156 | . 70 . . . 156 55 Shots Fired 177 | . 16 . . . 136 25 Gun 156 | . 16 . . . 115 25 Cannon . | . . . . . . . Launcher . | . . . . . . . Special 21 | . . . . . 21 . Kinetic 81 | . 8 . . . 73 . Thermal 96 | . 8 . . . 63 25 Explosive . | . . . . . . . Electromagnetic . | . . . . . . . Robot Hit Streak 6 | . 3 . . . 6 4 Robot Miss Streak 6 | . 3 . . . 6 4 Penetration Max . | . . . . . . . Secondary Targets 1 | . . . . . 1 . Max Gunslinging Chain 1 | . . . . . 1 . Shots Hit Robots 91 | . 8 . . . 69 14 Core Hits 47 | . 5 . . . 36 6 Critical Kills . | . . . . . . . Critical Parts Destroyed . | . . . . . . . Critical Strikes 1 | . . . . . . 1 Burn 1 | . . . . . . 1 Melee Attacks . | . . . . . . . Impact . | . . . . . . . Slashing . | . . . . . . . Piercing . | . . . . . . . Sneak Attacks . | . . . . . . . Combat Hostiles . | . . . . . . . Follow-up Attacks . | . . . . . . . Damage Inflicted 1279 | . 80 . . . 921 278 Guns 1255 | . 80 . . . 897 278 Cannons . | . . . . . . . Explosions . | . . . . . . . Melee . | . . . . . . . Ramming . | . . . . . . . Kinetic 536 | . 30 . . . 506 . Thermal 743 | . 50 . . . 415 278 Explosive . | . . . . . . . Electromagnetic . | . . . . . . . Impact . | . . . . . . . Slashing . | . . . . . . . Piercing . | . . . . . . . Highest Corruption 15 | . . . . . 15 . Average Corruption 14 | . . . . . 14 . Corruption Purged . | . . . . . . . Corruption Blocked . | . . . . . . . Effects 32 | . . . . . 32 . Message Errors 6 | . . . . . 6 . Matter Fused 8 | . . . . . 8 . Heat Flow Errors 4 | . . . . . 4 . Energy Discharges 4 | . . . . . 4 . Parts Rejected 2 | . . . . . 2 . Data Loss (minor) 4 | . . . . . 4 . Misfires 2 | . . . . . 2 . Alerts 1 | . . . . . 1 . Weapon Failures 1 | . . . . . 1 . Overload Shots . | . . . . . . . Overflow Damage . | . . . . . . . Projectiles . | . . . . . . . Explosions . | . . . . . . . Melee . | . . . . . . . Knockbacks . | . . . . . . . Impact . | . . . . . . . Kinetic . | . . . . . . . Secondary . | . . . . . . . Self-Inflicted Damage . | . . . . . . . Shots . | . . . . . . . Rammed . | . . . . . . . Targets Rammed . | . . . . . . . Kicked . | . . . . . . . Crushed . | . . . . . . . Highest Temperature 448 | . 90 . . . 448 145 Average Temperature 65 | . 46 . . . 68 61 Received Heat Transfer 459 | . . . . . 279 180 Effects 4 | . . . . . 4 . Shutdowns 2 | . . . . . 2 . Interference 2 | . . . . . 2 . Siege Activations . | . . . . . . . Robots Corrupted . | . . . . . . . Combat Hostiles . | . . . . . . . Parts Fried . | . . . . . . . Impact Corruptions . | . . . . . . . Robots Melted . | . . . . . . . Combat Hostiles . | . . . . . . . Parts Melted . | . . . . . . . Heat Transferred 1678 | . 148 . . . 938 592 Parts Sabotaged . | . . . . . . . Parts Stolen . | . . . . . . . Parts Stripped . | . . . . . . . Power Chain Reactions . | . . . . . . . Alert | -11 -10 -10 -10 -9 -8 -7 ------- Run | Yrd Mat Min Exi Min Mat Fac Peak Influence 193 | . 85 33 . . 193 115 Initial 65 | . . 33 . . . 65 Average 47 | . 42 33 . . 57 80 Maximum Alert Level . | . . . . . . . Low Security (%) 100 | 100 100 100 . 100 100 100 Level 1 . | . . . . . . . Level 2 . | . . . . . . . Level 3 . | . . . . . . . Level 4 . | . . . . . . . Level 5 . | . . . . . . . High Security . | . . . . . . . Max Security . | . . . . . . . Squads Dispatched 9 | . 1 . . . 7 1 Investigation . | . . . . . . . Extermination . | . . . . . . . Reinforcement 3 | . 1 . . . 1 1 Assault . | . . . . . . . Garrison 6 | . . . . . 6 . Intercept . | . . . . . . . Searches Triggered . | . . . . . . . Construction Impeded . | . . . . . . . Haulers Reinforced . | . . . . . . . Active Scanning Responses . | . . . . . . . Cargo Convoy Interrupts . | . . . . . . . Stealth | -11 -10 -10 -10 -9 -8 -7 --------- Run | Yrd Mat Min Exi Min Mat Fac Distress Signals 1 | . . . . . 1 . Communications Jammed . | . . . . . . . Distress Signals . | . . . . . . . Times Spotted 31 | . 3 . . . 23 5 Peak Tracking Total 6 | . 3 . . . 6 3 Tactical Retreats 2 | . . . . . 2 . Traps | -11 -10 -10 -10 -9 -8 -7 ------- Run | Yrd Mat Min Exi Min Mat Fac Traps Triggered . | . . . . . . . Indirectly . | . . . . . . . Trap Hack Attempts . | . . . . . . . Triggered . | . . . . . . . Disarmed . | . . . . . . . Reprogrammed . | . . . . . . . Reused . | . . . . . . . Traps Extracted . | . . . . . . . Installed . | . . . . . . . Triggered . | . . . . . . . Machines | -11 -10 -10 -10 -9 -8 -7 ---------- Run | Yrd Mat Min Exi Min Mat Fac Machines Disabled . | . . . . . . . Max in Single Turn . | . . . . . . . Machines Repaired . | . . . . . . . Machines Dismantled . | . . . . . . . Machines Sabotaged . | . . . . . . . Overloaded Fab Kills . | . . . . . . . Hacking | -11 -10 -10 -10 -9 -8 -7 --------- Run | Yrd Mat Min Exi Min Mat Fac Machines Accessed 10 | . 1 . 5 1 2 1 Terminals 4 | . 1 . . . 2 1 Fabricators . | . . . . . . . Repair Stations . | . . . . . . . Recycling Units . | . . . . . . . Scanalyzers . | . . . . . . . Garrison Access . | . . . . . . . Total Hacks 62 | . 4 . 50 1 5 2 Successful 52 | . . . 50 1 1 . Failed 10 | . 4 . . . 4 2 Catastrophic 1 | . . . . . 1 . Database Lockouts . | . . . . . . . Manual 1 | . . . 1 . . . Terminals 11 | . 4 . . . 5 2 Fabricators . | . . . . . . . Repair Stations . | . . . . . . . Recycling Units . | . . . . . . . Scanalyzers . | . . . . . . . Garrison Access . | . . . . . . . Terminal Hacks 52 | . . . 50 1 1 . Record 49 | . . . 49 . . . Open Door 1 | . . . . 1 . . Emergency Access Points 1 | . . . . . 1 . Derelict Proto ID Bank 1 | . . . 1 . . . Fabricator Hacks . | . . . . . . . Repair Station Hacks . | . . . . . . . Recycling Unit Hacks . | . . . . . . . Scanalyzer . | . . . . . . . Garrison Access Hacks . | . . . . . . . Unauthorized Hacks . | . . . . . . . Terminals . | . . . . . . . Fabricators . | . . . . . . . Repair Stations . | . . . . . . . Recycling Units . | . . . . . . . Scanalyzers . | . . . . . . . Garrison Access . | . . . . . . . Data Cores Recovered . | . . . . . . . Used . | . . . . . . . Hacking Detections 4 | . 1 . . . 2 1 Full Trace Events 2 | . 1 . . . 1 . Feedback Events . | . . . . . . . Feedback Blocked . | . . . . . . . Robot Schematics Acquired . | . . . . . . . Robots Built . | . . . . . . . Authchips . | . . . . . . . Time . | . . . . . . . Total Robot Build Rating . | . . . . . . . Part Schematics Acquired . | . . . . . . . Parts Built . | . . . . . . . Authchips . | . . . . . . . Time . | . . . . . . . Total Part Build Rating . | . . . . . . . Parts Repaired . | . . . . . . . Time . | . . . . . . . Parts Recycled . | . . . . . . . Recycled Matter . | . . . . . . . Retrieved Matter . | . . . . . . . Retrieved Components . | . . . . . . . Parts Scanalyzed . | . . . . . . . Part Schematics Acquired . | . . . . . . . Parts Damaged . | . . . . . . . Bothacking | -11 -10 -10 -10 -9 -8 -7 ------------ Run | Yrd Mat Min Exi Min Mat Fac Used RIF Installer . | . . . . . . . Robots Hacked . | . . . . . . . Non-combat . | . . . . . . . Combat . | . . . . . . . Robot Hacks Applied . | . . . . . . . Relay Couplers Released . | . . . . . . . Fabnet Peak Effective % . | . . . . . . . Robots Rewired . | . . . . . . . Allies Hacked . | . . . . . . . Hacks Repelled . | . . . . . . . Allies | -11 -10 -10 -10 -9 -8 -7 -------- Run | Yrd Mat Min Exi Min Mat Fac Total Allies 1 | . . . . 1 . . Largest Group 1 | . . . . 1 . . Highest-Rated Group 31 | . . . . 31 . . Highest-Rated Ally 31 | . . . . 31 . . Total Orders 3 | . . . . . 3 . EXPLORE 3 | . . . . . 3 . Ally Attacks 10 | . . . . . 10 . Total Damage 34 | . . . . . 34 . Kills . | . . . . . . . Allies Corrupted . | . . . . . . . Allies Melted . | . . . . . . . Intel | -11 -10 -10 -10 -9 -8 -7 ------- Run | Yrd Mat Min Exi Min Mat Fac Robot Analysis Total . | . . . . . . . Derelict Logs Recovered 1 | . . . . 1 . . Drone Launches 3 | . . . . . 3 . Drone Recoveries 3 | . . . . . 3 . Exploration | -11 -10 -10 -10 -9 -8 -7 ------------- Run | Yrd Mat Min Exi Min Mat Fac Turns Passed 3463 | 48 118 96 637 530 1678 356 Spaces Moved 1687 | 39 72 79 528 319 510 140 Core 28 | 22 . . . . 6 . Treads . | . . . . . . . Legs 1343 | 17 72 79 528 319 295 33 Wheels . | . . . . . . . Hover 23 | . . . . . 23 . Flight 293 | . . . . . 186 107 Fastest Speed 50 | 50 120 120 120 120 114 190 Average Speed 154 | 89 120 120 120 161 186 206 Slowest Speed 500 | 120 120 120 120 190 500 330 Overloaded Moves . | . . . . . . . Propulsion Burnouts . | . . . . . . . Robots Hopped . | . . . . . . . Cave-ins Triggered 1 | . . . . . 1 . Exploration Rate (%) 39 | 5 20 28 92 82 43 3 Regions Visited 6 Branch Regions 3 Pre-discovered Areas 1 | . . . 1 . . . Known Exits Taken 1 | . . . . . 1 . Unknown Exits Taken 5 | 1 1 1 1 1 . . Scrap Searched 2 | . . . . 2 . . Spaces Dug 19 | . . . . . 19 . Terrain Destroyed 19 | . . . . . 19 . Melee . | . . . . . . . Projectile 19 | . . . . . 19 . AOE . | . . . . . . . Terrain Rammed . | . . . . . . . Walls Destroyed . | . . . . . . . Machines Disabled . | . . . . . . . Actions | -11 -10 -10 -10 -9 -8 -7 --------- Run | Yrd Mat Min Exi Min Mat Fac Total 2333 | 51 90 80 532 334 1062 184 Wait 404 | . 4 2 . 6 392 . Move 1681 | 38 71 78 527 318 509 140 Hop . | . . . . . . . Pick Up 39 | 7 3 . 3 6 16 4 Fast Attach 14 | 1 . . . . 11 2 Attach 30 | 5 2 . 1 1 16 5 Detach 4 | . . . . . 4 . Swap 15 | . . . . 1 13 1 Drop 17 | . 2 . 1 2 5 7 Fire 129 | . 8 . . . 96 25 Melee . | . . . . . . . Ram . | . . . . . . . Kick . | . . . . . . . Crush . | . . . . . . . Escape Stasis . | . . . . . . . Rewire . | . . . . . . . Trap . | . . . . . . . Miscellaneous . | . . . . . . . Route ------- -11/Scrapyard -10/Materials -10/Mines -10/Exiles -9/Mines -8/Materials (discovered 2 exits: *Fac x2) -7/Factory History --------- Turn | Location | Event 5 | -11/Scrapyard | Discovered new exit (range 15) 49 | -11/Scrapyard | Entered Materials 137 | -10/Materials | Discovered new exit (range 9) 160 | -10/Materials | Met 8R-AWN 167 | -10/Materials | Entered Mines 168 | -10/Mines | Followed 8R-AWN into the Mines 258 | -10/Mines | Discovered new exit (range 5) 263 | -10/Mines | Entered Exiles 296 | -10/Exiles | Welcomed by 8R-AWN 300 | -10/Exiles | Build established: Mutant 315 | -10/Exiles | Met EX-HEX 352 | -10/Exiles | Met EX-BIN 376 | -10/Exiles | Aligned with FarCom system 377 | -10/Exiles | Given EX-Vault access code 422 | -10/Exiles | Opened EX-Vault 425 | -10/Exiles | Found Prototype Processor 426 | -10/Exiles | Identified 0b10 Alert Chip 430 | -10/Exiles | Found Prototype Device 432 | -10/Exiles | Identified Chronowheel 468 | -10/Exiles | Warned to stay clear of 0b10 Research branches 506 | -10/Exiles | Met EX-DEC 515 | -10/Exiles | Learned location of Zion (-6) 558 | -10/Exiles | Discovered new exit (range 14) 648 | -10/Exiles | Visited The Gauntlet 900 | -10/Exiles | Stole two prototypes: 0b10 Alert Chip, Chronowheel 900 | -10/Exiles | Entered Mines 905 | -9/Mines | Found the Drone Emporium 910 | -9/Mines | Found Prototype Device 942 | -9/Mines | Learned 4 Materials zone layouts 954 | -9/Mines | Received a Mining Laser from a helpful Derelict 1190 | -9/Mines | Found a damaged Exp. Sensor Array with a note attached 1194 | -9/Mines | Found Prototype Device 1396 | -9/Mines | Found a hidden stash of uninstalled traps 1403 | -9/Mines | Discovered new exit (range 15) 1430 | -9/Mines | Entered Materials 1430 | -8/Materials | Evolved 4 slots: Power x1, Propulsion x1, Utility x2 1431 | -8/Materials | Identified exit to Factory 1431 | -8/Materials | Identified Thief Drone Bay 1433 | -8/Materials | Identified Exp. Sensor Array 2348 | -8/Materials | Garrison activated, responded to threat 2374 | -8/Materials | Crushed by falling debris 2374 | -8/Materials | System corruption reached 10% 2405 | -8/Materials | Lost 3 parts (1p1n1u) 2638 | -8/Materials | Lost 4 parts (1p1n2w) 2700 | -8/Materials | Garrison activated, responded to threat 2838 | -8/Materials | Core integrity fell below 50% 2895 | -8/Materials | Lost 3 parts (1n1u1w) 2939 | -8/Materials | Build established: Scavenger-Mutant 3108 | -8/Materials | Entered Factory 3108 | -7/Factory | Evolved 2 slots: Utility x1, Weapon x1 3110 | -7/Factory | FarCom data flow suspended 3464 | -7/Factory | Self-destructed Last Messages --------------- Heat Sink destroyed. G-47 Trooper destroyed. Acquired 42 matter. Dropped Imp. Ion Engine. Dropped Med. Storage Unit. Dropped Flight Unit. Acquired Aluminum Leg. Connecting with Terminal... Acquired Ion Cannon. Dropped Lgt. Assault Rifle. Acquired Remote Datajack. R-06 Scavenger collects Imp. Heat Sink. R-06 Scavenger collects Med. Storage Unit. R-06 Scavenger collects Particle Gun. R-06 Scavenger collects Flight Unit. R-06 Scavenger collects Imp. Ion Engine. Acquired 40 matter. R-06 Scavenger collects Flight Unit. R-06 Scavenger collects Imp. Ion Engine. Acquired 46 matter. Map ----- +----------------------------------------------------+ | ??# #?????????????????????????????????? | | ??# #?????????????????????????????????? | | ??# #?????????????????????????????????? | | ??# #?????????????????????????????????? | | ??# #?????????????????????????????????? | | ??# #?????????????????????????????????? | | ??# #?????????????????????????????????? | | #########+######?????????????????????????????????? | | !# #????????????????????????????????????? | | "" # #????????????????????????????????????? | | "" # #????????????????????????????????????? | | "" + #????????????????????????????????????? | | # #????????????????????????????????????? | | """ # #???????????????????? ??????????????? | | Y" # ########???????????? ????????????? | | """ # #??????????? ????????????? | | # #??????????? ???????????? | | ####### #?????????? ???????????? | | ??????# #????????? w ??????????? | | ??????# #????????? ??????????? | | ????########## o #???????? ??????????? | | ????# # ######### ?????????? | | ????# """" # ?????????? | | ????# """" # ????????? | | ????# """" # ????????? | | ????# """" + r @ ????????? | | ????# """" # ????????? | | ????# """" # ###+###############???????????? | | ????# """" # # #????????????????? | | ????# #######" #????????????????? | | ????##########?????#" = #????????????????? | | ???????????????????#" #????????????????? | | ???????????????????#T #????????????????? | | ???????????????????#" [ #????????????????? | | ???????????????????#" #????????????????? | | ???????????????????#" #????????????????? | | ???????????????????# #????????????????? | | ???????????????????# """"""""" #????????????????? | | ???????????????????# #????????????????? | | ???????????????????# #????????????????? | | ???????????????????##############????????????????? | | ?????????????????????????????????????????????????? | | ?????????????????????????????????????????????????? | | ?????????????????????????????????????????????????? | | ?????????????????????????????????????????????????? | | ?????????????????????????????????????????????????? | | ?????????????????????????????????????????????????? | | ?????????????????????????????????????????????????? | | ?????????????????????????????????????????????????? | | ?????????????????????????????????????????????????? | +----------------------------------------------------+ Best States ------------- Heat Dissipation 44 Energy Generation 22 Energy Capacity 315 Matter Stores 301 Matter Capacity 400 Sight Range 16 Robot Scan Range 20 Terrain Scan Density 110 Armor Coverage 150 Evasion (%) 55 Offensive Hacking 10 Item Schematics ----------------- None Robot Schematics ------------------ None Fabricated ------------ Nothing Alien Tech Used ----------------- None Achievements -------------- Unlikely Earthworm Challenges ------------ None Game ------ Seed CoreArmageddonSuperbattery Manual? 0 Play Time 00:40:15 Cumulative 7.3 hours Start 2024.05.08 @ 01:09:02 End 2024.05.08 @ 01:50:02 Sessions 1 Manual Loads 0 Difficulty Rogue Special Mode None Game No. 11 Rogue 11 Adventurer 0 Explorer 0 Win Type - Total 0 Types 0/0/0/0/0/0/0/0/0 Lore% 14 Gallery% 15 Achievement% 14 Wizard Run 0 Options --------- Layout 1 ASCII 0 Keyboard 0 Movement Mouse Keybinds 0 Fullscreen 2 Font 24/Smallcaps Map View 50x35 Zoom Use 0% Tactical HUD 0 Map Filters NONE Filters NONE Steam 1 RUN: 1e604e7e-75e3-47df-a1d0-e8923464fed1